fUSD/lending_fUSD_20250205
["ID","MTS","AMOUNT","RATE_DAILY","PERIOD"]
[351741137,1738771873695,-764.98,0.00011848,2]
[351741138,1738771873705,-785.56,0.00011848,2]
[351741139,1738771873715,-1888.48,0.00011848,2]
[351741140,1738771873725,-1187.93,0.00011848,2]
[351741141,1738771873734,-1413.76,0.00011848,2]
[351741142,1738771873743,-695.95,0.00011848,2]
[351741143,1738771873752,-599.71,0.00011848,2]
[351741144,1738771873762,-1194.3,0.00011848,2]
[351741145,1738771873771,-1788.75,0.00011848,2]
[351741146,1738771873781,-514.06,0.00011848,2]
[351741147,1738771873791,-933.46,0.00011848,2]
[351741148,1738771873800,-500.0,0.00011848,2]
[351741149,1738771873809,-1831.77,0.00011848,2]
[351741150,1738771873818,-1103.47,0.00011848,2]
[351741151,1738771873828,-913.2,0.00011848,2]
[351741152,1738771873840,-447.06,0.00011848,2]
[351741153,1738771873851,-570.34,0.00011848,2]
[351741154,1738771873860,-921.24,0.00011848,2]
[351741155,1738771873871,-500.0,0.00011848,2]
[351741156,1738771873881,-591.54,0.00011848,2]
[351741157,1738771873891,-3174.66,0.00011848,2]
[351741158,1738771873901,-973.6,0.00011848,2]
[351741159,1738771873910,-1149.06,0.00011848,2]
[351741160,1738771873921,-558.48,0.00011848,2]
[351741161,1738771873931,-1294.06,0.00011848,2]
[351741162,1738771873941,-517.12341953,0.00011848,2]
[351741163,1738771873950,-1258.85,0.00011848,2]
[351741164,1738771873960,-2123.01,0.00011848,2]
[351741165,1738771873970,-547.44,0.00011849,2]
[351741166,1738771873979,-577.12,0.00011849,2]
[351741167,1738771873988,-500.0,0.00011849,2]
[351741168,1738771873998,-242.13,0.00011849,2]
[351741169,1738771874008,-547.58,0.00011849,2]
[351741170,1738771874017,-686.43,0.00011849,2]
[351741171,1738771874027,-358.22150796,0.00011849,2]
[351741172,1738771874037,-885.56,0.00011849,2]
[351741173,1738771874047,-518.57,0.00011849,2]
[351741174,1738771874056,-525.08,0.00011849,2]
[351741175,1738771874066,-1263.94,0.00011849,2]
[351741176,1738771874075,-873.98,0.00011849,2]
[351741177,1738771874086,-2767.25,0.00011849,2]
[351741178,1738771874097,-1351.66,0.00011849,2]
[351741179,1738771874107,-794.15,0.00011849,2]
[351741180,1738771874117,-995.15,0.00011849,2]
[351741181,1738771874127,-509.04,0.00011849,2]
[351741182,1738771874137,-500.0,0.00011849,2]
[351741183,1738771874146,-1529.77,0.00011849,2]
[351741184,1738771874156,-541.3,0.00011849,2]
[351741185,1738771874165,-608.19,0.00011849,2]
[351741186,1738771874175,-587.28,0.00011849,2]
[351741187,1738771874185,-955.06,0.00011849,2]
[351741188,1738771874195,-4000.0,0.0001187,2]
[351741189,1738771874205,-500.0,0.00011873,2]
[351741190,1738771874215,-524.48627891,0.0001189,2]
[351741191,1738771874226,-5000.0,0.000119,2]
[351741192,1738771874236,-2000.0,0.000119,2]
[351741193,1738771874245,-2000.0,0.000119,2]
[351741194,1738771874255,-151.08814574,0.000119,2]
[351741195,1738771874266,-500.0,0.00011916,2]
[351741196,1738771874277,-500.0,0.00011916,2]
[351741197,1738771874288,-1000.0,0.00011945,2]
[351741198,1738771874299,-1000.0,0.00011945,2]
[351741199,1738771874309,-1000.0,0.00011945,2]
[351741200,1738771874319,-1000.0,0.00011945,2]
[351741201,1738771874328,-1000.0,0.00011945,2]
[351741202,1738771874341,-1000.0,0.00011945,2]
[351741203,1738771874351,-1000.0,0.00011945,2]
[351741204,1738771874360,-1000.0,0.00011945,2]
[351741205,1738771874371,-1000.0,0.00011945,2]
[351741206,1738771874381,-1000.0,0.00011945,2]
[351741207,1738771874391,-8743.33,0.00011984,2]
[351741208,1738771874402,-303.3317,0.00011985,2]
[351741209,1738771874415,-1365.25,0.00011985,2]
[351741210,1738771874424,-623.84,0.00011985,2]
[351741211,1738771874434,-637.58,0.00011985,2]
[351741212,1738771874444,-660.58,0.00011985,2]
[351741213,1738771874453,-677.45,0.00011985,2]
[351741214,1738771874464,-657.6,0.00011985,2]
[351741215,1738771874474,-322.336595,0.00011985,2]
[351741216,1738771874484,-546.65,0.00011985,2]
[351741217,1738771874494,-549.14,0.00011985,2]
[351741218,1738771874504,-596.96,0.00011985,2]
[351741219,1738771874513,-527.61,0.00011985,2]
[351741220,1738771874524,-927.41,0.00011985,2]
[351741221,1738771874534,-1412.29,0.00011985,2]
[351741222,1738771874543,-764.98,0.00011985,2]
[351741223,1738771874554,-785.56,0.00011985,2]
[351741224,1738771874564,-1888.48,0.00011985,2]
[351741225,1738771874575,-1187.93,0.00011985,2]
[351741226,1738771874587,-1413.76,0.00011985,2]
[351741227,1738771874597,-695.95,0.00011985,2]
[351741228,1738771874607,-599.71,0.00011985,2]
[351741229,1738771874618,-1194.3,0.00011985,2]
[351741230,1738771874628,-1788.75,0.00011985,2]
[351741231,1738771874639,-514.06,0.00011985,2]
[351741232,1738771874649,-933.46,0.00011985,2]
[351741233,1738771874659,-320.65,0.00011985,2]
[351741234,1738771874669,-1831.77,0.00011985,2]
[351741235,1738771874679,-1103.47,0.00011985,2]
[351741236,1738771874689,-913.2,0.00011985,2]
[351741237,1738771874699,-570.34,0.00011985,2]
[351741238,1738771874709,-921.24,0.00011985,2]
[351741239,1738771874719,-500.0,0.00011985,2]
[351741240,1738771874729,-591.54,0.00011985,2]
[351741241,1738771874739,-3174.66,0.00011985,2]
[351741242,1738771874749,-973.6,0.00011985,2]
[351741243,1738771874759,-1149.06,0.00011985,2]
[351741244,1738771874769,-558.48,0.00011985,2]
[351741245,1738771874778,-1294.06,0.00011985,2]
[351741246,1738771874787,-1258.85,0.00011985,2]
[351741247,1738771874797,-2123.01,0.00011985,2]
[351741248,1738771874807,-547.44,0.00011986,2]
[351741249,1738771874816,-577.12,0.00011986,2]
[351741250,1738771874826,-500.0,0.00011986,2]
[351741251,1738771874837,-547.58,0.00011986,2]
[351741252,1738771874847,-686.43,0.00011986,2]
[351741253,1738771874857,-885.56,0.00011986,2]
[351741254,1738771874867,-518.57,0.00011986,2]
[351741255,1738771874877,-525.08,0.00011986,2]
[351741256,1738771874886,-1263.94,0.00011986,2]
[351741257,1738771874895,-873.98,0.00011986,2]
[351741258,1738771874905,-2767.25,0.00011986,2]
[351741259,1738771874913,-1351.66,0.00011986,2]
[351741260,1738771874922,-794.15,0.00011986,2]
[351741261,1738771874931,-995.15,0.00011986,2]
[351741262,1738771874940,-509.07507717,0.00011986,2]
[351741263,1738771874949,-500.0,0.00011986,2]
[351741264,1738771874958,-1529.77,0.00011986,2]
[351741265,1738771874968,-541.3,0.00011986,2]
[351741266,1738771874977,-608.19,0.00011986,2]
[351741267,1738771874987,-587.28,0.00011986,2]
[351741268,1738771874997,-955.06,0.00011986,2]
[351741269,1738771875008,-8743.33,0.00011989,2]
[351741270,1738771875017,-8743.33,0.00011989,2]
[351741271,1738771875026,-8743.33,0.00011989,2]
[351741272,1738771875035,-8743.33,0.00011989,2]
[351741273,1738771875044,-8743.33,0.00011989,2]
[351741274,1738771875053,-29066.81327683,0.0001199,2]
[351741275,1738771875063,-936162.71542902,0.0001199,2]
[351741276,1738771875073,-223807.50768562,0.0001199,2]
[351741277,1738771875082,-53456.34983755,0.0001199,2]
[351741278,1738771875095,-151.0,0.0001199,2]
[351741279,1738771875104,-151.0,0.0001199,2]
[351741280,1738771875114,-174.032486,0.0001199,2]
[351741281,1738771875124,-174.032486,0.0001199,2]
[351741282,1738771875133,-500.0,0.0001199,2]
[351741283,1738771875142,-500.0,0.0001199,2]
[351741284,1738771875149,-500.0,0.0001199,2]
[351741285,1738771875159,-500.0,0.0001199,2]
[351741286,1738771875168,-500.0,0.0001199,2]
[351741287,1738771875178,-500.0,0.0001199,2]
[351741288,1738771875188,-500.0,0.0001199,2]
[351741289,1738771875198,-500.0,0.0001199,2]
[351741290,1738771875210,-500.0,0.0001199,2]
[351741291,1738771875220,-500.0,0.0001199,2]
[351741292,1738771875230,-500.0,0.0001199,2]
[351741293,1738771875238,-500.0,0.0001199,2]
[351741294,1738771875248,-500.0,0.0001199,2]
[351741295,1738771875258,-500.0,0.0001199,2]
[351741296,1738771875267,-500.0,0.0001199,2]
[351741297,1738771875277,-500.0,0.0001199,2]
[351741298,1738771875287,-500.0,0.0001199,2]
[351741299,1738771875297,-500.0,0.0001199,2]
[351741300,1738771875306,-500.0,0.0001199,2]
[351741301,1738771875316,-500.0,0.0001199,2]
[351741302,1738771875326,-500.0,0.0001199,2]
[351741303,1738771875339,-500.0,0.0001199,2]
[351741304,1738771875349,-500.0,0.0001199,2]
[351741305,1738771875359,-500.0,0.0001199,2]
[351741306,1738771875370,-500.0,0.0001199,2]
[351741307,1738771875382,-500.0,0.0001199,2]
[351741308,1738771875393,-500.0,0.0001199,2]
[351741309,1738771875403,-500.0,0.0001199,2]
[351741310,1738771875420,-500.0,0.0001199,2]
[351741311,1738771875430,-500.0,0.0001199,2]
[351741312,1738771875440,-500.0,0.0001199,2]
[351741313,1738771875451,-500.0,0.0001199,2]
[351741314,1738771875463,-500.0,0.0001199,2]
[351741315,1738771875473,-500.0,0.0001199,2]
[351741316,1738771875485,-500.0,0.0001199,2]
[351741317,1738771875497,-500.0,0.0001199,2]
[351741318,1738771875507,-500.0,0.0001199,2]
[351741319,1738771875518,-500.0,0.0001199,2]
[351741320,1738771875529,-500.0,0.0001199,2]
[351741321,1738771875541,-500.0,0.0001199,2]
[351741322,1738771875550,-500.0,0.0001199,2]
[351741323,1738771875560,-500.0,0.0001199,2]
[351741324,1738771875571,-500.0,0.0001199,2]
[351741325,1738771875581,-500.0,0.0001199,2]
[351741326,1738771875596,-500.0,0.0001199,2]
[351741327,1738771875606,-500.0,0.0001199,2]
[351741328,1738771875618,-500.0,0.0001199,2]
[351741329,1738771875628,-500.0,0.0001199,2]
[351741330,1738771875638,-500.0,0.0001199,2]
[351741331,1738771875648,-500.0,0.0001199,2]
[351741332,1738771875657,-500.0,0.0001199,2]
[351741333,1738771875667,-500.0,0.0001199,2]
[351741334,1738771875677,-500.0,0.0001199,2]
[351741335,1738771875686,-500.0,0.0001199,2]
[351741336,1738771875696,-500.0,0.0001199,2]
[351741337,1738771875706,-500.0,0.0001199,2]
[351741338,1738771875717,-500.0,0.0001199,2]
[351741339,1738771875727,-500.0,0.0001199,2]
[351741340,1738771875736,-500.0,0.0001199,2]
[351741341,1738771875746,-500.0,0.0001199,2]
[351741342,1738771875755,-500.0,0.0001199,2]
[351741343,1738771875766,-500.0,0.0001199,2]
[351741344,1738771875776,-500.0,0.0001199,2]
[351741345,1738771875785,-500.0,0.0001199,2]
[351741346,1738771875795,-500.0,0.0001199,2]
[351741347,1738771875804,-599.0,0.0001199,2]
[351741348,1738771875813,-300.0,0.00011994,2]
[351741349,1738771875823,-300.0,0.00011994,2]
[351741350,1738771875832,-8743.33,0.00011994,2]
[351741351,1738771875846,-94033.74,0.00011995,2]
[351741352,1738771875855,-27509.99999999,0.00011995,2]
[351741353,1738771875865,-300.0,0.00011998,2]
[351741354,1738771875875,-300.0,0.00011999,2]
[351741355,1738771875884,-62146.88546975,0.00011999,2]
[351741356,1738771875894,-2000.0,0.00011999,2]
[351741357,1738771875904,-2000.0,0.00011999,2]
[351741358,1738771875913,-2000.0,0.00011999,2]
[351741359,1738771875923,-2000.0,0.00011999,2]
[351741360,1738771875932,-2000.0,0.00011999,2]
[351741361,1738771875942,-2000.0,0.00011999,2]
[351741362,1738771875951,-8743.33,0.00011999,2]
[351741363,1738771875960,-8743.33,0.00011999,2]
[351741364,1738771875971,-8743.33,0.00011999,2]
[351741365,1738771875980,-8743.33,0.00011999,2]
[351741366,1738771875989,-8743.33,0.00011999,2]
[351741367,1738771875999,-8743.39008438,0.00011999,2]
[351741368,1738771876008,-951.01325386,0.00012,2]
[351741369,1738771876018,-1225.24940392,0.00012,2]
[351741370,1738771876026,-2134520.07209389,0.00012,2]
[351741371,1738771876226,-393549.1078222,0.00012,2]
[351741372,1738771876238,-740.5496385,0.00012,2]
[351741373,1738771876249,-582.17387649,0.00012,2]
[351741374,1738771876262,-300.98800001,0.00012,2]
[351741375,1738771876376,-1509.09021663,0.00012,2]
[351741376,1738771876390,-152684.17779396,0.00012,2]
[351741377,1738771876402,-9897.5,0.00012,2]
[351741378,1738771876433,-15955.36651628,0.00012,2]
[351741379,1738771876445,-369.12270208,0.00012,2]
[351741380,1738771876456,-800.89537267,0.00012,2]
[351741381,1738771876468,-15820.45032808,0.00012,2]
[351741382,1738771876479,-1558.32946893,0.00012,2]
[351741383,1738771876492,-273.88727203,0.00012,2]
[351741384,1738771876719,-1000.0,8.851e-05,2]
[351741385,1738771876731,-843.19730691,0.0001189,2]
[351741386,1738771876742,-6086.8029697,0.00012,2]
[351741387,1738771876754,-20871.7039664,0.00012,2]
[351741388,1738771876766,-1137126.6840058,0.00012,2]
[351741389,1738771876807,-564.4512074,0.00012,2]
[351741390,1738771876819,-33182.79413709,0.00012,2]
[351741391,1738771876832,-1118.34000148,0.00012,2]
[351741392,1738771876847,-2256.01758718,0.00012,2]
[351741393,1738771876858,-2845.0,0.00012,2]
[351741394,1738771876870,-470.08251304,0.00012,2]
[351741395,1738771876882,-320.21201996,0.00012,2]
[351741396,1738771876895,-7513.02048545,0.00012,2]
[351741397,1738771876907,-7992.64513,0.00012,2]
[351741398,1738771876919,-599909.77076703,0.00012,2]
[351741399,1738771876929,-840388.28026977,0.00012,2]
[351741408,1738772518063,449.2153048,0.0002,120]
[351741409,1738772539613,3997.71,0.0002,120]
[351741410,1738772737258,3091.70876987,8e-05,2]
[351741411,1738772737282,10000.0,8e-05,2]
[351741412,1738772737309,10000.0,8e-05,2]
[351741413,1738772737332,838.24015056,8e-05,2]
[351741414,1738772756311,9161.75984944,6.94e-05,2]
[351741415,1738772756331,10000.0,6.94e-05,2]
[351741416,1738772756352,10000.0,6.94e-05,2]
[351741417,1738772756373,1271.74024036,6.94e-05,2]
[351741423,1738772880146,510.74,0.0002,120]
[351741426,1738772913417,510.73,0.0002,120]
[351741446,1738773009693,-1415.38,8.219e-05,2]
[351741447,1738773009721,-8584.62,8.599e-05,2]
[351741448,1738773016913,-10000.0,8.599e-05,2]
[351741449,1738773026466,-5315.38,8.599e-05,2]
[351741459,1738773032635,-1372.52500003,8.647e-05,2]
[351741460,1738773032647,-15887.72499997,8.647e-05,2]
[351741461,1738773032657,-5968.59,8.647e-05,2]
[351741462,1738773032667,-266.4928,8.699e-05,2]
[351741463,1738773032677,-1077.8936,8.699e-05,2]
[351741464,1738773032687,-949.66,8.7e-05,2]
[351741465,1738773032696,-1000.0,8.704e-05,2]
[351741466,1738773032710,-4824.67,8.734e-05,2]
[351741467,1738773032720,-1573.93,8.797e-05,2]
[351741468,1738773032729,-1008.75023516,8.799e-05,2]
[351741469,1738773032738,-10291.17986487,8.8e-05,2]
[351741470,1738773032752,-477.3447327,8.8e-05,2]
[351741471,1738773032767,-417.24376161,8.8e-05,2]
[351741472,1738773032778,-644.37700077,8.8e-05,2]
[351741474,1738773032898,-4318.44378973,8.8e-05,2]
[351741496,1738773038293,-538.46190833,8.8e-05,2]
[351741497,1738773038310,-299.83516892,8.8e-05,2]
[351741498,1738773038322,-410.97561762,8.8e-05,2]
[351741499,1738773038334,-3434.6306921,8.8e-05,2]
[351741500,1738773038346,-19102.23884323,8.8e-05,2]
[351741501,1738773038358,-529.47807039,8.8e-05,2]
[351741502,1738773038370,-7041.04717939,8.8e-05,2]
[351741503,1738773038381,-378.37856411,8.8e-05,2]
[351741504,1738773038439,-19319.39072733,8.8e-05,2]
[351741505,1738773038450,-685.37,8.808e-05,2]
[351741506,1738773038459,-2115.9922,8.836e-05,2]
[351741507,1738773038469,-3171.9519,8.836e-05,2]
[351741508,1738773038479,-3555.3237,8.836e-05,2]
[351741509,1738773038489,-500.0,8.851e-05,2]
[351741510,1738773038499,-1000.0,8.851e-05,2]
[351741511,1738773038513,-2500.0,8.851e-05,2]
[351741517,1738773038524,-177.04,8.924e-05,2]
[351741519,1738773038743,-500.0,8.971e-05,2]
[351741521,1738773038755,-500.0,8.971e-05,2]
[351741523,1738773038766,-500.0,8.971e-05,2]
[351741525,1738773038776,-500.0,8.971e-05,2]
[351741528,1738773038788,-500.0,8.971e-05,2]
[351741530,1738773038798,-500.0,8.971e-05,2]
[351741532,1738773038809,-562.26020233,8.971e-05,2]
[351741533,1738773038822,-500.0,8.971e-05,2]
[351741536,1738773038835,-500.0,8.971e-05,2]
[351741538,1738773038847,-500.0,8.971e-05,2]
[351741542,1738773038869,-500.0,8.971e-05,2]
[351741545,1738773038880,-500.0,8.971e-05,2]
[351741547,1738773038891,-500.0,8.971e-05,2]
[351741549,1738773038902,-500.0,8.971e-05,2]
[351741551,1738773038912,-500.0,8.971e-05,2]
[351741553,1738773038923,-500.0,8.971e-05,2]
[351741555,1738773038933,-500.0,8.971e-05,2]
[351741557,1738773038943,-500.0,8.971e-05,2]
[351741559,1738773038953,-500.0,8.971e-05,2]
[351741561,1738773038962,-642.13,8.971e-05,2]
[351741563,1738773038973,-500.0,8.971e-05,2]
[351741565,1738773038982,-500.0,8.971e-05,2]
[351741567,1738773038993,-500.0,8.971e-05,2]
[351741569,1738773039005,-611.33,8.971e-05,2]
[351741571,1738773039016,-500.0,8.971e-05,2]
[351741573,1738773039026,-500.0,8.971e-05,2]
[351741575,1738773039036,-500.0,8.972e-05,2]
[351741577,1738773039047,-10525.675,8.973e-05,2]
[351741579,1738773039057,-500.0,9.108e-05,2]
[351741581,1738773039067,-500.0,9.108e-05,2]
[351741583,1738773039078,-545.99,9.108e-05,2]
[351741585,1738773039088,-500.0,9.108e-05,2]
[351741587,1738773039099,-500.0,9.108e-05,2]
[351741589,1738773039108,-368.00200687,9.108e-05,2]
[351741591,1738773039118,-500.0,9.108e-05,2]
[351741593,1738773039128,-500.0,9.108e-05,2]
[351741595,1738773039137,-500.0,9.108e-05,2]
[351741597,1738773039147,-539.42,9.108e-05,2]
[351741600,1738773039157,-500.0,9.108e-05,2]
[351741602,1738773039167,-500.0,9.108e-05,2]
[351741604,1738773039176,-500.0,9.108e-05,2]
[351741605,1738773039186,-500.0,9.108e-05,2]
[351741607,1738773039196,-500.0,9.108e-05,2]
[351741610,1738773039206,-500.0,9.108e-05,2]
[351741612,1738773039215,-150.7,9.108e-05,2]
[351741614,1738773039226,-500.0,9.245e-05,2]
[351741616,1738773039236,-500.0,9.245e-05,2]
[351741618,1738773039245,-320.12,9.245e-05,2]
[351741620,1738773039260,-522.48,9.245e-05,2]
[351741622,1738773039271,-420.76,9.245e-05,2]
[351741624,1738773039282,-326.48,9.245e-05,2]
[351741626,1738773039293,-500.0,9.245e-05,2]
[351741628,1738773039304,-454.38426346,9.245e-05,2]
[351741631,1738773039319,-57.05573654,9.245e-05,2]
[351741633,1738773039329,-490.32,9.245e-05,2]
[351741635,1738773039340,-382.58,9.245e-05,2]
[351741637,1738773039350,-301.85,9.245e-05,2]
[351741639,1738773039359,-234.48,9.245e-05,2]
[351741641,1738773039371,-500.0,9.245e-05,2]
[351741643,1738773039382,-234.61,9.382e-05,2]
[351741645,1738773039391,-213.7,9.382e-05,2]
[351741647,1738773039402,-500.0,9.382e-05,2]
[351741649,1738773039412,-500.0,9.382e-05,2]
[351741651,1738773039422,-500.0,9.519e-05,2]
[351741653,1738773039432,-500.0,9.519e-05,2]
[351741655,1738773039442,-250.0,9.566e-05,2]
[351741657,1738773039452,-500.0,9.569e-05,2]
[351741659,1738773039462,-337.52,9.656e-05,2]
[351741661,1738773039472,-500.0,9.656e-05,2]
[351741663,1738773039482,-187.46252706,9.713e-05,2]
[351741666,1738773039498,-9.82747294,9.713e-05,2]
[351741668,1738773039514,-306.43063612,9.777e-05,2]
[351741670,1738773039526,-46.64936388,9.777e-05,2]
[351741672,1738773039536,-353.08,9.78e-05,2]
[351741674,1738773039545,-215.68887973,9.782e-05,2]
[351741677,1738773039558,-137.39112027,9.782e-05,2]
[351741679,1738773039568,-353.08,9.785e-05,2]
[351741681,1738773039579,-353.08,9.787e-05,2]
[351741683,1738773039589,-353.08,9.79e-05,2]
[351741685,1738773039600,-1000.0,9.792e-05,2]
[351741687,1738773039610,-353.08,9.793e-05,2]
[351741689,1738773039620,-358.11,9.793e-05,2]
[351741691,1738773039630,-353.08,9.795e-05,2]
[351741692,1738773039641,-353.08,9.798e-05,2]
[351741693,1738773039652,-353.08,9.8e-05,2]
[351741694,1738773039662,-353.08,9.803e-05,2]
[351741695,1738773039673,-353.08,9.805e-05,2]
[351741696,1738773039683,-353.08,9.808e-05,2]
[351741697,1738773039693,-353.08,9.811e-05,2]
[351741698,1738773039703,-353.08,9.813e-05,2]
[351741699,1738773039713,-353.08,9.816e-05,2]
[351741700,1738773039722,-353.08,9.818e-05,2]
[351741701,1738773039736,-353.08,9.821e-05,2]
[351741702,1738773039748,-353.08,9.823e-05,2]
[351741703,1738773039767,-353.08,9.826e-05,2]
[351741704,1738773039778,-500.0,9.928e-05,2]
[351741705,1738773039788,-500.0,9.928e-05,2]
[351741706,1738773039801,-500.0,9.928e-05,2]
[351741708,1738773039811,-500.0,9.928e-05,2]
[351741710,1738773039820,-500.0,9.928e-05,2]
[351741712,1738773039830,-500.0,9.928e-05,2]
[351741713,1738773039840,-500.0,9.928e-05,2]
[351741715,1738773039850,-500.0,9.928e-05,2]
[351741718,1738773039860,-500.0,9.928e-05,2]
[351741720,1738773039870,-500.0,9.928e-05,2]
[351741721,1738773039880,-500.0,9.928e-05,2]
[351741724,1738773039890,-500.0,9.928e-05,2]
[351741725,1738773039900,-500.0,9.928e-05,2]
[351741727,1738773039910,-500.0,9.928e-05,2]
[351741729,1738773039920,-500.0,9.928e-05,2]
[351741732,1738773039930,-500.0,9.928e-05,2]
[351741734,1738773039940,-500.0,9.928e-05,2]
[351741736,1738773039951,-500.0,9.928e-05,2]
[351741738,1738773039961,-500.0,9.928e-05,2]
[351741739,1738773039972,-500.0,9.928e-05,2]
[351741742,1738773039983,-500.0,9.928e-05,2]
[351741744,1738773039993,-500.0,9.928e-05,2]
[351741746,1738773040003,-500.0,9.928e-05,2]
[351741747,1738773040015,-500.0,9.928e-05,2]
[351741750,1738773040026,-151.665853,9.928e-05,2]
[351741752,1738773040036,-500.0,9.928e-05,2]
[351741753,1738773040047,-500.0,9.928e-05,2]
[351741755,1738773040057,-500.0,9.928e-05,2]
[351741757,1738773040067,-637.63,9.928e-05,2]
[351741759,1738773040077,-500.0,9.928e-05,2]
[351741762,1738773040089,-500.0,9.928e-05,2]
[351741764,1738773040099,-500.0,9.928e-05,2]
[351741766,1738773040109,-500.0,9.928e-05,2]
[351741767,1738773040119,-500.0,9.928e-05,2]
[351741769,1738773040128,-500.0,9.928e-05,2]
[351741771,1738773040138,-500.0,9.928e-05,2]
[351741774,1738773040148,-500.0,9.928e-05,2]
[351741776,1738773040158,-500.0,9.928e-05,2]
[351741778,1738773040168,-500.0,9.928e-05,2]
[351741780,1738773040178,-587.89382099,9.928e-05,2]
[351741782,1738773040187,-500.0,9.928e-05,2]
[351741784,1738773040198,-500.0,9.928e-05,2]
[351741786,1738773040207,-500.0,9.928e-05,2]
[351741788,1738773040218,-500.0,9.928e-05,2]
[351741790,1738773040228,-500.0,9.928e-05,2]
[351741792,1738773040237,-500.0,9.928e-05,2]
[351741794,1738773040247,-500.0,9.929e-05,2]
[351741795,1738773040262,-500.0,9.929e-05,2]
[351741798,1738773040274,-500.0,9.929e-05,2]
[351741799,1738773040289,-500.0,9.929e-05,2]
[351741802,1738773040306,-500.0,9.929e-05,2]
[351741805,1738773040318,-500.0,9.929e-05,2]
[351741807,1738773040331,-551.35915354,9.929e-05,2]
[351741809,1738773040341,-500.0,9.929e-05,2]
[351741811,1738773040351,-500.0,9.929e-05,2]
[351741813,1738773040361,-500.0,9.929e-05,2]
[351741815,1738773040371,-500.0,9.929e-05,2]
[351741817,1738773040381,-500.0,9.929e-05,2]
[351741819,1738773040390,-500.0,9.929e-05,2]
[351741821,1738773040400,-500.0,9.929e-05,2]
[351741823,1738773040410,-500.0,9.929e-05,2]
[351741825,1738773040420,-500.0,9.929e-05,2]
[351741827,1738773040430,-540.46976453,9.929e-05,2]
[351741829,1738773040440,-500.0,9.929e-05,2]
[351741831,1738773040450,-500.0,9.929e-05,2]
[351741833,1738773040460,-500.52771307,9.929e-05,2]
[351741835,1738773040470,-500.0,9.929e-05,2]
[351741837,1738773040480,-500.0,9.929e-05,2]
[351741839,1738773040490,-500.0,9.929e-05,2]
[351741841,1738773040499,-500.0,9.929e-05,2]
[351741843,1738773040514,-576.61,9.929e-05,2]
[351741845,1738773040524,-500.0,9.929e-05,2]
[351741847,1738773040535,-500.0,9.929e-05,2]
[351741849,1738773040545,-500.0,9.929e-05,2]
[351741851,1738773040555,-500.0,9.929e-05,2]
[351741853,1738773040566,-358.39218107,9.929e-05,2]
[351741855,1738773040576,-500.0,9.929e-05,2]
[351741857,1738773040586,-500.0,9.929e-05,2]
[351741859,1738773040595,-500.0,9.929e-05,2]
[351741861,1738773040606,-219.19029347,9.929e-05,2]
[351741863,1738773040616,-500.0,9.929e-05,2]
[351741865,1738773040627,-500.0,9.929e-05,2]
[351741867,1738773040637,-500.0,9.929e-05,2]
[351741870,1738773040648,-500.0,9.929e-05,2]
[351741871,1738773040658,-500.0,9.929e-05,2]
[351741873,1738773040669,-500.0,9.929e-05,2]
[351741875,1738773040679,-381.67163578,9.929e-05,2]
[351741878,1738773040690,-594.03291525,9.929e-05,2]
[351741880,1738773040700,-500.0,9.929e-05,2]
[351741882,1738773040715,-500.0,9.929e-05,2]
[351741883,1738773040726,-500.0,9.929e-05,2]
[351741886,1738773040736,-639.34,9.929e-05,2]
[351741888,1738773040746,-411.92028388,9.929e-05,2]
[351741890,1738773040760,-614.90147282,9.929e-05,2]